[Event "Early-Titled-Tuesday-Blitz-May-07-2024"]
[Site "Chess.com"]
[Date "2024.05.07"]
[Round "6"]
[White "Goffredo_Fofi"]
[Black "Nechitaylo_Nikita"]
[Result "1-0"]
[WhiteElo "2525"]
[BlackElo "2352"]
[TimeControl "180+1"]
[EndTime "9:10:44 PDT"]
[Termination "Goffredo_Fofi won by checkmate"]

1. e4 {[%clk 0:03:00.9]} 1... c5 {[%clk 0:02:50.6]} 2. d3 {[%clk 0:03:00.7]}
2... Nc6 {[%clk 0:02:48.6]} 3. g3 {[%clk 0:03:01.1]} 3... g6 {[%clk 0:02:46.4]}
4. Bg2 {[%clk 0:03:01.7]} 4... Bg7 {[%clk 0:02:46.9]} 5. f4 {[%clk 0:03:02.3]}
5... d6 {[%clk 0:02:47.4]} 6. Nf3 {[%clk 0:03:02.9]} 6... e6 {[%clk 0:02:47.8]}
7. O-O {[%clk 0:03:03.3]} 7... Nge7 {[%clk 0:02:48.4]} 8. c3 {[%clk 0:03:03.8]}
8... O-O {[%clk 0:02:47.4]} 9. Be3 {[%clk 0:03:04.5]} 9... b5 {[%clk 0:02:42.8]}
10. d4 {[%clk 0:03:04.9]} 10... cxd4 {[%clk 0:02:41.8]} 11. cxd4 {[%clk
0:03:05.8]} 11... d5 {[%clk 0:02:42.5]} 12. e5 {[%clk 0:03:06.4]} 12... b4
{[%clk 0:02:38.5]} 13. Nbd2 {[%clk 0:03:06.1]} 13... Ba6 {[%clk 0:02:32.4]} 14.
Re1 {[%clk 0:03:06.2]} 14... Bd3 {[%clk 0:02:33]} 15. Nb3 {[%clk 0:03:04.3]}
15... Be4 {[%clk 0:02:33.1]} 16. Nc5 {[%clk 0:03:04.5]} 16... Nf5 {[%clk
0:02:26.9]} 17. Bf2 {[%clk 0:03:01]} 17... Bxf3 {[%clk 0:02:08.3]} 18. Bxf3
{[%clk 0:03:01.9]} 18... h5 {[%clk 0:02:07]} 19. Rc1 {[%clk 0:03:01.2]} 19...
Rc8 {[%clk 0:02:05.4]} 20. h3 {[%clk 0:02:40.2]} 20... a5 {[%clk 0:01:54.4]} 21.
g4 {[%clk 0:02:37.4]} 21... hxg4 {[%clk 0:01:54.3]} 22. hxg4 {[%clk 0:02:38.3]}
22... Nh4 {[%clk 0:01:54.9]} 23. Bh1 {[%clk 0:02:31.8]} 23... g5 {[%clk
0:01:53.7]} 24. Bxh4 {[%clk 0:02:19.3]} 24... gxh4 {[%clk 0:01:54.6]} 25. g5
{[%clk 0:02:15.1]} 25... Qb6 {[%clk 0:01:40.8]} 26. Bf3 {[%clk 0:02:08.4]} 26...
Rfd8 {[%clk 0:01:29.8]} 27. Bh5 {[%clk 0:02:08.3]} 27... Bf8 {[%clk 0:01:29.2]}
28. Bxf7+ {[%clk 0:02:06.1]} 28... Kxf7 {[%clk 0:01:28.6]} 29. Qh5+ {[%clk
0:02:05.6]} 29... Kg8 {[%clk 0:01:20.6]} 30. g6 {[%clk 0:01:44.3]} 30... Qa7
{[%clk 0:01:11.8]} 31. Nxe6 {[%clk 0:01:29.9]} 31... Nxd4 {[%clk 0:01:09.4]} 32.
Qh7+ {[%clk 0:01:29.8]} 32... Qxh7 {[%clk 0:01:08.4]} 33. gxh7+ {[%clk
0:01:30.7]} 33... Kxh7 {[%clk 0:01:09.3]} 34. Nxd4 {[%clk 0:01:31.1]} 34... Bc5
{[%clk 0:01:07.2]} 35. Rcd1 {[%clk 0:01:30.4]} 35... Rf8 {[%clk 0:01:03.8]} 36.
Rf1 {[%clk 0:01:30]} 36... Ba7 {[%clk 0:00:59.3]} 37. Kg2 {[%clk 0:01:20.4]}
37... Bxd4 {[%clk 0:00:51.5]} 38. Rxd4 {[%clk 0:01:21.3]} 38... Rc2+ {[%clk
0:00:51.6]} 39. Kh3 {[%clk 0:01:17.6]} 39... Rxb2 {[%clk 0:00:49.8]} 40. f5
{[%clk 0:01:17.9]} 40... Rxa2 {[%clk 0:00:47.3]} 41. Rg1 {[%clk 0:00:56.1]}
41... Ra3+ {[%clk 0:00:42.3]} 42. Kh2 {[%clk 0:00:56.3]} 42... Ra2+ {[%clk
0:00:12.6]} 43. Kh1 {[%clk 0:00:56.4]} 43... Rg8 {[%clk 0:00:11.5]} 44. Rxh4#
{[%clk 0:00:56.3]} 1-0

[Event "Early-Titled-Tuesday-Blitz-May-07-2024"]
[Site "Chess.com"]
[Date "2024.05.07"]
[Round "6"]
[White "IMchanged"]
[Black "tptagain"]
[Result "1-0"]
[WhiteElo "2770"]
[BlackElo "2917"]
[TimeControl "180+1"]
[EndTime "9:10:47 PDT"]
[Termination "IMchanged won by checkmate"]

1. d4 {[%clk 0:03:00.9]} 1... d5 {[%clk 0:02:59.9]} 2. Nc3 {[%clk 0:03:01.4]}
2... Nf6 {[%clk 0:02:58.2]} 3. Bf4 {[%clk 0:03:01.1]} 3... e6 {[%clk 0:02:58.3]}
4. e3 {[%clk 0:03:01.3]} 4... Bb4 {[%clk 0:02:57.5]} 5. Ne2 {[%clk 0:02:58.6]}
5... O-O {[%clk 0:02:57.2]} 6. a3 {[%clk 0:02:58.4]} 6... Be7 {[%clk 0:02:57.2]}
7. Ng3 {[%clk 0:02:58]} 7... c5 {[%clk 0:02:55.7]} 8. dxc5 {[%clk 0:02:57.4]}
8... Bxc5 {[%clk 0:02:55]} 9. Bd3 {[%clk 0:02:56.7]} 9... Nc6 {[%clk 0:02:50.7]}
10. Bg5 {[%clk 0:02:41.7]} 10... Be7 {[%clk 0:02:42.7]} 11. Nh5 {[%clk
0:02:31.8]} 11... h6 {[%clk 0:02:31.6]} 12. h4 {[%clk 0:02:26.1]} 12... Ne5
{[%clk 0:02:21]} 13. Bf4 {[%clk 0:02:09.7]} 13... Nxd3+ {[%clk 0:02:12.4]} 14.
cxd3 {[%clk 0:02:10.6]} 14... d4 {[%clk 0:02:12.7]} 15. Nxf6+ {[%clk 0:02:08.3]}
15... Bxf6 {[%clk 0:02:12.6]} 16. Ne4 {[%clk 0:02:08.7]} 16... dxe3 {[%clk
0:02:12.8]} 17. Nxf6+ {[%clk 0:02:07.8]} 17... Qxf6 {[%clk 0:02:12.6]} 18. fxe3
{[%clk 0:02:04.2]} 18... Qxb2 {[%clk 0:02:08]} 19. O-O {[%clk 0:02:03.3]} 19...
b6 {[%clk 0:02:05.8]} 20. Qf3 {[%clk 0:01:59.9]} 20... Ba6 {[%clk 0:01:52.2]}
21. Qg3 {[%clk 0:01:37.7]} 21... f6 {[%clk 0:01:27.1]} 22. Bxh6 {[%clk
0:01:31.9]} 22... Rf7 {[%clk 0:01:27]} 23. Rad1 {[%clk 0:01:09.2]} 23... Kh7
{[%clk 0:01:05.8]} 24. h5 {[%clk 0:01:03.8]} 24... f5 {[%clk 0:00:23.4]} 25.
Qg6+ {[%clk 0:00:44.1]} 25... Kg8 {[%clk 0:00:23.3]} 26. Bg5 {[%clk 0:00:44.8]}
26... Bb7 {[%clk 0:00:08.8]} 27. Rf2 {[%clk 0:00:40.5]} 27... Qb3 {[%clk
0:00:09.2]} 28. Rdf1 {[%clk 0:00:38.3]} 28... Qxd3 {[%clk 0:00:06.5]} 29. h6
{[%clk 0:00:37.2]} 29... Raf8 {[%clk 0:00:07.1]} 30. Bf6 {[%clk 0:00:34.9]}
30... Qe4 {[%clk 0:00:07.2]} 31. Bxg7 {[%clk 0:00:32.1]} 31... f4 {[%clk
0:00:05.3]} 32. h7# {[%clk 0:00:31.5]} 1-0

[Event "Early-Titled-Tuesday-Blitz-May-07-2024"]
[Site "Chess.com"]
[Date "2024.05.07"]
[Round "6"]
[White "FREDERICKtheMATE"]
[Black "NastyaHn"]
[Result "1-0"]
[WhiteElo "2710"]
[BlackElo "2484"]
[TimeControl "180+1"]
[EndTime "9:10:47 PDT"]
[Termination "FREDERICKtheMATE won on time"]

1. d4 {[%clk 0:03:00.9]} 1... d5 {[%clk 0:02:55.5]} 2. c4 {[%clk 0:03:01.2]}
2... e6 {[%clk 0:02:55.7]} 3. Nf3 {[%clk 0:03:00.9]} 3... Nf6 {[%clk 0:02:55.8]}
4. Nc3 {[%clk 0:03:00.5]} 4... c5 {[%clk 0:02:54.5]} 5. cxd5 {[%clk 0:03:00]}
5... exd5 {[%clk 0:02:53.6]} 6. Bg5 {[%clk 0:02:58.8]} 6... cxd4 {[%clk
0:02:40.2]} 7. Nxd4 {[%clk 0:02:58.8]} 7... Be7 {[%clk 0:02:36.9]} 8. e3 {[%clk
0:02:58.6]} 8... Nc6 {[%clk 0:02:36.9]} 9. Bb5 {[%clk 0:02:54.3]} 9... Qd6
{[%clk 0:02:24.4]} 10. O-O {[%clk 0:02:44.9]} 10... O-O {[%clk 0:02:24]} 11. Bf4
{[%clk 0:02:44.8]} 11... Qd8 {[%clk 0:01:51.5]} 12. Nxc6 {[%clk 0:02:43.4]}
12... bxc6 {[%clk 0:01:51.4]} 13. Bxc6 {[%clk 0:02:44.3]} 13... Be6 {[%clk
0:01:45.4]} 14. Bxa8 {[%clk 0:02:41.9]} 14... Qxa8 {[%clk 0:01:45.2]} 15. Ne2
{[%clk 0:02:41.3]} 15... Qb7 {[%clk 0:01:42.9]} 16. b3 {[%clk 0:02:39.8]} 16...
Ne4 {[%clk 0:01:38.6]} 17. Nd4 {[%clk 0:02:39.6]} 17... Ba3 {[%clk 0:01:23.4]}
18. Nxe6 {[%clk 0:02:29.2]} 18... fxe6 {[%clk 0:01:22.5]} 19. Be5 {[%clk
0:02:29.8]} 19... Rf5 {[%clk 0:01:13]} 20. f4 {[%clk 0:02:29.7]} 20... Qb6
{[%clk 0:01:05.3]} 21. Bd4 {[%clk 0:02:29.6]} 21... Qb5 {[%clk 0:01:04.1]} 22.
Qg4 {[%clk 0:02:28]} 22... g6 {[%clk 0:00:55.9]} 23. Qh4 {[%clk 0:02:19.9]}
23... Qd7 {[%clk 0:00:46.6]} 24. g4 {[%clk 0:02:16.3]} 24... Rf7 {[%clk
0:00:45]} 25. Rf3 {[%clk 0:02:00.4]} 25... Be7 {[%clk 0:00:28.8]} 26. Qe1 {[%clk
0:01:59.2]} 26... e5 {[%clk 0:00:21.2]} 27. Bxe5 {[%clk 0:01:54.8]} 27... Qxg4+
{[%clk 0:00:21.1]} 28. Rg3 {[%clk 0:01:55]} 28... Nxg3 {[%clk 0:00:19.9]} 29.
Qxg3 {[%clk 0:01:55.9]} 29... Qe2 {[%clk 0:00:12.3]} 30. Rc1 {[%clk 0:01:54.5]}
30... Bf8 {[%clk 0:00:07.8]} 31. Qh3 {[%clk 0:01:50]} 31... Qd3 {[%clk
0:00:06.6]} 32. Bd4 {[%clk 0:01:45]} 32... Qd2 {[%clk 0:00:04.7]} 33. Qf1 {[%clk
0:01:38.4]} 33... Qxa2 {[%clk 0:00:03.3]} 34. Qb5 {[%clk 0:01:29.2]} 34... Qd2
{[%clk 0:00:02.9]} 35. Rf1 {[%clk 0:01:27.7]} 35... Qc2 {[%clk 0:00:01.8]} 36.
Qxd5 {[%clk 0:01:27]} 36... Qc8 {[%clk 0:00:01.4]} 37. Ra1 {[%clk 0:01:24.6]}
37... Qg4+ {[%clk 0:00:01.4]} 38. Kh1 {[%clk 0:01:24.4]} 38... Qe2 {[%clk
0:00:00.9]} 39. Qg2 {[%clk 0:01:16.7]} 39... Qxg2+ {[%clk 0:00:00.5]} 40. Kxg2
{[%clk 0:01:16.7]} 40... Rb7 {[%clk 0:00:00.3]} 41. Rxa7 {[%clk 0:01:16]} 41...
Rxb3 {[%clk 0:00:00.7]} 42. Kf3 {[%clk 0:01:16.3]} 42... Rd3 {[%clk 0:00:00.6]}
43. Ke4 {[%clk 0:01:16.4]} 43... Rb3 {[%clk 0:00:00.7]} 44. Kd5 {[%clk
0:01:16.3]} 44... Rb5+ {[%clk 0:00:01.1]} 45. Ke6 {[%clk 0:01:16.5]} 45... Rb1
{[%clk 0:00:01.2]} 46. Ra8 {[%clk 0:01:15.5]} 1-0

[Event "Early-Titled-Tuesday-Blitz-May-07-2024"]
[Site "Chess.com"]
[Date "2024.05.07"]
[Round "6"]
[White "giovannibrandao7"]
[Black "Fh2411"]
[Result "0-1"]
[WhiteElo "2308"]
[BlackElo "2528"]
[TimeControl "180+1"]
[EndTime "9:10:51 PDT"]
[Termination "Fh2411 won on time"]

1. e4 {[%clk 0:02:59.6]} 1... c6 {[%clk 0:02:59]} 2. d4 {[%clk 0:02:59.3]} 2...
d5 {[%clk 0:02:52.6]} 3. Nc3 {[%clk 0:02:59.6]} 3... dxe4 {[%clk 0:02:52.5]} 4.
Nxe4 {[%clk 0:03:00.5]} 4... Nf6 {[%clk 0:02:53.3]} 5. Nxf6+ {[%clk 0:03:00.9]}
5... exf6 {[%clk 0:02:54.2]} 6. c3 {[%clk 0:03:00.4]} 6... Qe7+ {[%clk
0:02:54.7]} 7. Be2 {[%clk 0:02:49.3]} 7... Qc7 {[%clk 0:02:53.9]} 8. Qc2 {[%clk
0:02:44.2]} 8... Bd6 {[%clk 0:02:53.8]} 9. Nf3 {[%clk 0:02:36.9]} 9... O-O
{[%clk 0:02:52.2]} 10. Be3 {[%clk 0:02:33.9]} 10... Re8 {[%clk 0:02:47.5]} 11.
O-O-O {[%clk 0:02:33.5]} 11... Nd7 {[%clk 0:02:47.5]} 12. Kb1 {[%clk 0:02:29.6]}
12... Nf8 {[%clk 0:02:48]} 13. h4 {[%clk 0:02:26.4]} 13... b5 {[%clk 0:02:48.3]}
14. h5 {[%clk 0:02:25.8]} 14... Be6 {[%clk 0:02:41.9]} 15. Bd3 {[%clk
0:01:50.3]} 15... a5 {[%clk 0:02:36.7]} 16. Rdg1 {[%clk 0:01:22.6]} 16... Bd5
{[%clk 0:02:23.8]} 17. Nh4 {[%clk 0:01:21.9]} 17... Bf4 {[%clk 0:02:20.4]} 18.
Nf5 {[%clk 0:01:18.2]} 18... a4 {[%clk 0:02:16.8]} 19. Rh4 {[%clk 0:00:55.1]}
19... Bg5 {[%clk 0:02:07.8]} 20. Rg4 {[%clk 0:00:48.3]} 20... Rxe3 {[%clk
0:01:35.5]} 21. fxe3 {[%clk 0:00:44.9]} 21... g6 {[%clk 0:01:34.9]} 22. hxg6
{[%clk 0:00:27.3]} 22... fxg6 {[%clk 0:01:29.8]} 23. e4 {[%clk 0:00:22.4]} 23...
Be6 {[%clk 0:01:23.8]} 24. Rxg5 {[%clk 0:00:21.1]} 24... fxg5 {[%clk 0:01:24.4]}
25. Ne3 {[%clk 0:00:07.8]} 25... Qf7 {[%clk 0:01:23.3]} 26. Rf1 {[%clk 0:00:07]}
26... Bxa2+ {[%clk 0:01:22.6]} 27. Ka1 {[%clk 0:00:07.4]} 27... Qb3 {[%clk
0:01:21]} 28. e5 {[%clk 0:00:07.5]} 28... a3 {[%clk 0:01:13.5]} 29. Qxb3+ {[%clk
0:00:05.6]} 29... Bxb3 {[%clk 0:01:14.4]} 30. bxa3 {[%clk 0:00:06.1]} 30... Be6
{[%clk 0:00:59]} 31. Kb2 {[%clk 0:00:06.2]} 31... Re8 {[%clk 0:00:57.8]} 32. Be4
{[%clk 0:00:06.5]} 32... Bd7 {[%clk 0:00:56.8]} 33. Rf6 {[%clk 0:00:05.2]} 33...
Ne6 {[%clk 0:00:57.3]} 34. Ng4 {[%clk 0:00:04.3]} 34... Kg7 {[%clk 0:00:56.1]}
35. Rf1 {[%clk 0:00:03.6]} 35... h5 {[%clk 0:00:54.4]} 36. Nf6 {[%clk 0:00:04]}
36... Rf8 {[%clk 0:00:55.1]} 37. Rf3 {[%clk 0:00:02]} 37... g4 {[%clk
0:00:54.5]} 38. Rf1 {[%clk 0:00:00.7]} 38... Ng5 {[%clk 0:00:54.8]} 0-1

[Event "Early-Titled-Tuesday-Blitz-May-07-2024"]
[Site "Chess.com"]
[Date "2024.05.07"]
[Round "6"]
[White "Eloist"]
[Black "kylnmd"]
[Result "0-1"]
[WhiteElo "2404"]
[BlackElo "2271"]
[TimeControl "180+1"]
[EndTime "9:10:52 PDT"]
[Termination "kylnmd won by resignation"]

1. e4 {[%clk 0:03:00.9]} 1... c5 {[%clk 0:02:59.1]} 2. Nf3 {[%clk 0:02:59.6]}
2... e6 {[%clk 0:02:58.4]} 3. d4 {[%clk 0:02:58.9]} 3... cxd4 {[%clk 0:02:58]}
4. Nxd4 {[%clk 0:02:59.8]} 4... a6 {[%clk 0:02:57.6]} 5. Bd3 {[%clk 0:02:58.9]}
5... Nf6 {[%clk 0:02:56.9]} 6. O-O {[%clk 0:02:58.6]} 6... d6 {[%clk 0:02:56.7]}
7. Qe2 {[%clk 0:02:57.5]} 7... Nbd7 {[%clk 0:02:56.3]} 8. c4 {[%clk 0:02:56.6]}
8... Qc7 {[%clk 0:02:54.8]} 9. Nc3 {[%clk 0:02:56.2]} 9... Be7 {[%clk
0:02:55.1]} 10. f4 {[%clk 0:02:55.1]} 10... O-O {[%clk 0:02:52.6]} 11. Kh1
{[%clk 0:02:50.2]} 11... b6 {[%clk 0:02:51.5]} 12. Be3 {[%clk 0:02:45.3]} 12...
Bb7 {[%clk 0:02:50.1]} 13. b4 {[%clk 0:02:44]} 13... d5 {[%clk 0:01:36.5]} 14.
e5 {[%clk 0:02:36.8]} 14... dxc4 {[%clk 0:01:31.1]} 15. Bxc4 {[%clk 0:02:19]}
15... Ne4 {[%clk 0:01:28.6]} 16. Nxe4 {[%clk 0:02:16.3]} 16... Bxe4 {[%clk
0:01:28.4]} 17. Rac1 {[%clk 0:02:09.1]} 17... Qb7 {[%clk 0:01:28.2]} 18. Nxe6
{[%clk 0:01:50.3]} 18... fxe6 {[%clk 0:01:23.9]} 19. Bxe6+ {[%clk 0:01:51.2]}
19... Kh8 {[%clk 0:01:23.4]} 20. Rfd1 {[%clk 0:01:42.7]} 20... Rad8 {[%clk
0:01:18.3]} 21. Qg4 {[%clk 0:01:21.4]} 21... Nb8 {[%clk 0:01:00.8]} 22. Rxd8
{[%clk 0:01:16.4]} 22... Rxd8 {[%clk 0:00:57.8]} 23. f5 {[%clk 0:01:16.5]} 23...
Bd5 {[%clk 0:00:43.7]} 24. Bxd5 {[%clk 0:01:06.9]} 24... Qxd5 {[%clk 0:00:42.3]}
25. Bxb6 {[%clk 0:00:56.3]} 25... Rf8 {[%clk 0:00:41.7]} 26. Rc7 {[%clk
0:00:24.6]} 26... Qxe5 {[%clk 0:00:26.5]} 27. h3 {[%clk 0:00:18.5]} 27... Bd6
{[%clk 0:00:20.9]} 0-1

[Event "Early-Titled-Tuesday-Blitz-May-07-2024"]
[Site "Chess.com"]
[Date "2024.05.07"]
[Round "6"]
[White "Zarinur"]
[Black "Casablanca"]
[Result "0-1"]
[WhiteElo "2535"]
[BlackElo "2717"]
[TimeControl "180+1"]
[EndTime "9:10:53 PDT"]
[Termination "Casablanca won by checkmate"]

1. e4 {[%clk 0:03:00.9]} 1... c5 {[%clk 0:02:59.7]} 2. Nf3 {[%clk 0:02:58]} 2...
d6 {[%clk 0:03:00.3]} 3. Bb5+ {[%clk 0:02:57]} 3... Bd7 {[%clk 0:02:59.7]} 4.
Bxd7+ {[%clk 0:02:55.7]} 4... Qxd7 {[%clk 0:03:00.6]} 5. c4 {[%clk 0:02:55.4]}
5... Nc6 {[%clk 0:02:57]} 6. d4 {[%clk 0:02:55.9]} 6... cxd4 {[%clk 0:02:56.5]}
7. Nxd4 {[%clk 0:02:56.8]} 7... Nf6 {[%clk 0:02:57]} 8. Nc3 {[%clk 0:02:55.9]}
8... e6 {[%clk 0:02:54.7]} 9. O-O {[%clk 0:02:54.5]} 9... Be7 {[%clk 0:02:53.2]}
10. b3 {[%clk 0:02:46.3]} 10... O-O {[%clk 0:02:52.6]} 11. Nxc6 {[%clk
0:02:45.3]} 11... Qxc6 {[%clk 0:02:52.4]} 12. Qd3 {[%clk 0:02:42.5]} 12... Rfd8
{[%clk 0:02:52]} 13. Bg5 {[%clk 0:02:34.1]} 13... h6 {[%clk 0:02:40.6]} 14. Bh4
{[%clk 0:02:32.8]} 14... a6 {[%clk 0:02:40.9]} 15. Rfe1 {[%clk 0:02:29.3]} 15...
Rd7 {[%clk 0:02:33.8]} 16. a4 {[%clk 0:02:22.8]} 16... Rad8 {[%clk 0:02:32.8]}
17. Rac1 {[%clk 0:02:20.8]} 17... Qc5 {[%clk 0:02:28.8]} 18. Ne2 {[%clk
0:01:35.2]} 18... Ng4 {[%clk 0:02:16.1]} 19. Bg3 {[%clk 0:01:34.1]} 19... Ne5
{[%clk 0:02:16.3]} 20. Qd1 {[%clk 0:01:19.9]} 20... Bf6 {[%clk 0:02:07.9]} 21.
Kh1 {[%clk 0:01:08.2]} 21... Ng4 {[%clk 0:02:07.5]} 22. Rf1 {[%clk 0:01:06.5]}
22... Be5 {[%clk 0:01:56.2]} 23. h3 {[%clk 0:00:52.6]} 23... Bxg3 {[%clk
0:01:55.7]} 24. hxg4 {[%clk 0:00:53]} 24... Bxf2 {[%clk 0:01:44.1]} 25. b4
{[%clk 0:00:45.7]} 25... Qa7 {[%clk 0:01:44]} 26. Qd3 {[%clk 0:00:39.5]} 26...
Be3 {[%clk 0:01:43.8]} 27. Rcd1 {[%clk 0:00:27.8]} 27... Bg5 {[%clk 0:01:42.5]}
28. Rf3 {[%clk 0:00:23.1]} 28... Qb6 {[%clk 0:01:42.5]} 29. c5 {[%clk
0:00:13.2]} 29... dxc5 {[%clk 0:01:42.1]} 30. Qxd7 {[%clk 0:00:13.3]} 30... Rxd7
{[%clk 0:01:43]} 31. Rxd7 {[%clk 0:00:13.8]} 31... Bf6 {[%clk 0:01:29.6]} 32.
bxc5 {[%clk 0:00:13.5]} 32... Qb1+ {[%clk 0:01:24.4]} 33. Kh2 {[%clk 0:00:10.4]}
33... Be5+ {[%clk 0:01:24.1]} 34. g3 {[%clk 0:00:06]} 34... Qxe4 {[%clk
0:01:24.3]} 35. Rdxf7 {[%clk 0:00:05.5]} 35... Qxe2+ {[%clk 0:01:24.3]} 36. Rf2
{[%clk 0:00:06.1]} 36... Qxg4 {[%clk 0:01:24.5]} 37. Rf8+ {[%clk 0:00:05.8]}
37... Kh7 {[%clk 0:01:24.1]} 38. R8f3 {[%clk 0:00:06.5]} 38... Qxa4 {[%clk
0:01:15]} 39. Kg2 {[%clk 0:00:06.7]} 39... Qe4 {[%clk 0:01:14.1]} 40. Kh2 {[%clk
0:00:03.7]} 40... a5 {[%clk 0:01:12.3]} 41. Ra3 {[%clk 0:00:03.7]} 41... a4
{[%clk 0:01:12.1]} 42. Rfa2 {[%clk 0:00:02.8]} 42... Qg4 {[%clk 0:01:03.3]} 43.
Kg2 {[%clk 0:00:03.2]} 43... h5 {[%clk 0:01:03]} 44. Kh1 {[%clk 0:00:02.3]}
44... Qh3+ {[%clk 0:01:02.3]} 45. Rh2 {[%clk 0:00:02.7]} 45... Qf1# {[%clk
0:00:59.5]} 0-1

[Event "Early-Titled-Tuesday-Blitz-May-07-2024"]
[Site "Chess.com"]
[Date "2024.05.07"]
[Round "6"]
[White "CrushingKings"]
[Black "willyam13"]
[Result "0-1"]
[WhiteElo "2612"]
[BlackElo "2453"]
[TimeControl "180+1"]
[EndTime "9:10:59 PDT"]
[Termination "willyam13 won by resignation"]

1. Nf3 {[%clk 0:03:00.9]} 1... d5 {[%clk 0:02:55.6]} 2. g3 {[%clk 0:03:01.4]}
2... Nf6 {[%clk 0:02:55.1]} 3. Bg2 {[%clk 0:03:01.9]} 3... c6 {[%clk 0:02:55.5]}
4. O-O {[%clk 0:03:02.5]} 4... Bf5 {[%clk 0:02:55.8]} 5. d3 {[%clk 0:03:02.3]}
5... e6 {[%clk 0:02:56.1]} 6. Nh4 {[%clk 0:03:02.5]} 6... Bg4 {[%clk 0:02:51.6]}
7. h3 {[%clk 0:03:02.9]} 7... Bh5 {[%clk 0:02:51.8]} 8. g4 {[%clk 0:03:03.6]}
8... Nfd7 {[%clk 0:02:41.6]} 9. Nf3 {[%clk 0:03:03.9]} 9... Bg6 {[%clk
0:02:41.5]} 10. c4 {[%clk 0:03:04.6]} 10... Be7 {[%clk 0:02:30.9]} 11. Nc3
{[%clk 0:03:03.2]} 11... h5 {[%clk 0:02:23.2]} 12. e4 {[%clk 0:03:03]} 12...
hxg4 {[%clk 0:02:22.9]} 13. hxg4 {[%clk 0:03:03.3]} 13... dxe4 {[%clk
0:02:16.4]} 14. dxe4 {[%clk 0:03:03.6]} 14... Qc7 {[%clk 0:02:10.1]} 15. e5
{[%clk 0:03:02.9]} 15... Nxe5 {[%clk 0:02:01]} 16. Bf4 {[%clk 0:03:02.5]} 16...
Nxf3+ {[%clk 0:01:58.4]} 17. Qxf3 {[%clk 0:03:02.7]} 17... Bd6 {[%clk 0:01:59]}
18. Bxd6 {[%clk 0:03:02.9]} 18... Qxd6 {[%clk 0:01:59.9]} 19. Rfd1 {[%clk
0:03:03.2]} 19... Qh2+ {[%clk 0:01:36.8]} 20. Kf1 {[%clk 0:03:03.2]} 20... Nd7
{[%clk 0:01:37.3]} 21. Ne4 {[%clk 0:03:00.5]} 21... Bxe4 {[%clk 0:01:32.4]} 22.
Qxe4 {[%clk 0:03:00.1]} 22... O-O-O {[%clk 0:01:21.6]} 23. Qe3 {[%clk
0:02:50.4]} 23... Kb8 {[%clk 0:01:14.8]} 24. Rd4 {[%clk 0:02:50.3]} 24... Nf6
{[%clk 0:00:41.5]} 25. Rad1 {[%clk 0:02:49.6]} 25... Rxd4 {[%clk 0:00:38.5]} 26.
Rxd4 {[%clk 0:02:45.6]} 26... Qc7 {[%clk 0:00:30.9]} 27. g5 {[%clk 0:02:36.5]}
27... Nd7 {[%clk 0:00:28.2]} 28. g6 {[%clk 0:02:36.7]} 28... e5 {[%clk
0:00:22.8]} 29. Rd2 {[%clk 0:01:57.8]} 29... f5 {[%clk 0:00:22.5]} 30. Qg5
{[%clk 0:01:56.7]} 30... Nf6 {[%clk 0:00:11.3]} 31. Qxf5 {[%clk 0:01:55.9]}
31... Re8 {[%clk 0:00:10.9]} 32. Re2 {[%clk 0:01:37.8]} 32... Qa5 {[%clk
0:00:11]} 33. b3 {[%clk 0:01:25.5]} 33... Qc3 {[%clk 0:00:08.6]} 34. f4 {[%clk
0:01:08]} 34... e4 {[%clk 0:00:02.4]} 35. Qh3 {[%clk 0:00:59.5]} 35... Qc1+
{[%clk 0:00:02.3]} 36. Kf2 {[%clk 0:00:59.2]} 36... Qxf4+ {[%clk 0:00:02.8]} 37.
Kg1 {[%clk 0:00:59.8]} 37... Rd8 {[%clk 0:00:02.7]} 38. Re1 {[%clk 0:00:57.8]}
38... Rd2 {[%clk 0:00:02.8]} 39. Qh8+ {[%clk 0:00:56.8]} 39... Kc7 {[%clk
0:00:01.9]} 40. Qxg7+ {[%clk 0:00:56.8]} 40... Kb6 {[%clk 0:00:02.6]} 41. Qf8
{[%clk 0:00:49]} 41... Qf2+ {[%clk 0:00:02.6]} 0-1

[Event "Early-Titled-Tuesday-Blitz-May-07-2024"]
[Site "Chess.com"]
[Date "2024.05.07"]
[Round "6"]
[White "Heinza9"]
[Black "akanga001"]
[Result "1-0"]
[WhiteElo "2340"]
[BlackElo "2161"]
[TimeControl "180+1"]
[EndTime "9:11:01 PDT"]
[Termination "Heinza9 won by checkmate"]

1. e4 {[%clk 0:03:00.9]} 1... e6 {[%clk 0:02:54.1]} 2. c4 {[%clk 0:02:58.6]}
2... e5 {[%clk 0:02:45.9]} 3. Nc3 {[%clk 0:02:57.2]} 3... Bc5 {[%clk 0:02:42.5]}
4. Nf3 {[%clk 0:02:55.2]} 4... Nc6 {[%clk 0:02:42]} 5. d3 {[%clk 0:02:54.7]}
5... h6 {[%clk 0:02:41.6]} 6. Be2 {[%clk 0:02:51.6]} 6... a6 {[%clk 0:02:40.4]}
7. Be3 {[%clk 0:02:50.5]} 7... d6 {[%clk 0:02:25.4]} 8. O-O {[%clk 0:02:48.6]}
8... Nf6 {[%clk 0:02:24.6]} 9. Qd2 {[%clk 0:02:45.5]} 9... Nd4 {[%clk
0:02:11.8]} 10. Bxd4 {[%clk 0:02:30.7]} 10... exd4 {[%clk 0:02:07.7]} 11. Nd5
{[%clk 0:02:30.7]} 11... c6 {[%clk 0:02:00.6]} 12. Nxf6+ {[%clk 0:02:29.8]}
12... Qxf6 {[%clk 0:02:00.4]} 13. b4 {[%clk 0:02:29.4]} 13... Ba7 {[%clk
0:01:59.2]} 14. Rfe1 {[%clk 0:02:25.9]} 14... O-O {[%clk 0:01:57.5]} 15. h3
{[%clk 0:02:25]} 15... Re8 {[%clk 0:01:51.9]} 16. Nh2 {[%clk 0:02:22]} 16... a5
{[%clk 0:01:30.2]} 17. a3 {[%clk 0:02:19.2]} 17... axb4 {[%clk 0:01:27]} 18.
axb4 {[%clk 0:02:18.9]} 18... Bd7 {[%clk 0:01:27.1]} 19. f4 {[%clk 0:02:01.2]}
19... Qh4 {[%clk 0:01:14.7]} 20. Bg4 {[%clk 0:01:39.5]} 20... Bxg4 {[%clk
0:00:53]} 21. Nxg4 {[%clk 0:01:38.6]} 21... Bb6 {[%clk 0:00:51.8]} 22. Qf2
{[%clk 0:01:31.3]} 22... Qe7 {[%clk 0:00:43]} 23. f5 {[%clk 0:01:26.8]} 23... f6
{[%clk 0:00:40.8]} 24. Qg3 {[%clk 0:01:25.1]} 24... Kh7 {[%clk 0:00:36.1]} 25.
Nh2 {[%clk 0:01:21.4]} 25... Rad8 {[%clk 0:00:29.8]} 26. Qg6+ {[%clk 0:01:08.7]}
26... Kh8 {[%clk 0:00:29.5]} 27. Ng4 {[%clk 0:01:08.8]} 27... Rf8 {[%clk
0:00:26.1]} 28. Ra2 {[%clk 0:00:41.4]} 28... Qf7 {[%clk 0:00:25.7]} 29. Qxf7
{[%clk 0:00:38.2]} 29... Rxf7 {[%clk 0:00:26.6]} 30. Rea1 {[%clk 0:00:36.2]}
30... h5 {[%clk 0:00:26.6]} 31. Nf2 {[%clk 0:00:36.1]} 31... Rff8 {[%clk
0:00:24.1]} 32. g4 {[%clk 0:00:35]} 32... Kh7 {[%clk 0:00:21.2]} 33. Kg2 {[%clk
0:00:34.4]} 33... Kh6 {[%clk 0:00:20.5]} 34. Kg3 {[%clk 0:00:34.3]} 34... hxg4
{[%clk 0:00:16.4]} 35. hxg4 {[%clk 0:00:32.8]} 35... Kg5 {[%clk 0:00:16.9]} 36.
Rh1 {[%clk 0:00:28.3]} 36... Rh8 {[%clk 0:00:14.2]} 37. Nh3+ {[%clk 0:00:28.5]}
37... Kh6 {[%clk 0:00:13.3]} 38. Nf4+ {[%clk 0:00:28.2]} 38... Kg5 {[%clk
0:00:13.3]} 39. Ne6# {[%clk 0:00:28.2]} 1-0